bitfinex/quotes_ETHUSD_20260131
["timestamp","ask_amount","ask_price","bid_price","bid_amount"]
[1769865212300,16.22935877,2633.2,2632.5,0.0011]
[1769865212468,13.54906074,2633.0,2631.5,13.63804262]
[1769865212778,13.54906074,2632.8,2631.5,13.63804262]
[1769865213180,13.88074792,2632.7,2631.5,13.63804262]
[1769865213372,0.796,2632.6,2631.5,13.63804262]
[1769865214866,1.11564213,2632.6,2631.5,13.63804262]
[1769865217659,0.31964213,2632.6,2631.5,13.63804262]
[1769865217876,0.31964213,2632.6,2631.7,13.29298953]
[1769865218079,13.10992523,2633.3,2631.7,13.29298953]
[1769865218267,0.31217149,2633.4,2631.7,13.29298953]
[1769865218472,0.31217149,2633.4,2631.9,13.29298953]
[1769865218879,13.42209672,2633.4,2631.9,13.29298953]
[1769865222495,14.37144169,2633.4,2631.9,13.29298953]
[1769865222687,14.37144169,2633.4,2631.8,1.46567938]
[1769865223189,13.42209672,2633.4,2631.9,13.89874723]
[1769865223765,12.63805948,2633.2,2631.9,13.89874723]
[1769865225507,0.31217149,2633.4,2631.9,13.89874723]
[1769865226986,12.95023097,2633.4,2631.9,13.89874723]
[1769865227190,13.93308258,2633.3,2632.1,13.89874723]
[1769865229402,0.31217149,2633.4,2632.1,13.89874723]
[1769865229696,12.95023097,2633.4,2632.1,13.89874723]
[1769865231073,12.95023097,2633.4,2632.1,14.84855432]
[1769865231389,0.001,2633.1,2632.1,13.89874723]
[1769865232353,0.001,2633.1,2632.1,14.84855446]
[1769865232504,0.001,2633.1,2632.3,13.89874723]
[1769865234399,0.31217149,2633.4,2632.4,13.89874723]
[1769865235672,0.31217149,2633.4,2632.4,14.84844699]
[1769865237912,12.94392336,2634.5,2632.5,14.13231753]
[1769865238090,12.63805948,2634.3,2632.5,14.13231753]
[1769865238288,12.63805948,2634.1,2632.7,13.89874723]
[1769865238720,12.63805948,2634.1,2632.6,1.50820173]
[1769865240609,12.63805948,2634.1,2632.6,13.89874723]
[1769865243943,12.63905948,2633.9,2632.6,13.89874723]
[1769865247217,12.63905948,2633.9,2632.6,14.84836708]
[1769865247425,0.001,2633.9,2632.6,14.84836708]
[1769865248008,0.001,2633.9,2632.8,12.70347772]
[1769865248204,0.001,2633.9,2633.0,12.70347772]
[1769865248514,0.30586388,2634.5,2633.2,12.70347772]
[1769865248718,0.30586388,2634.5,2633.4,12.70347772]
[1769865249031,0.30586388,2634.5,2633.3,0.9493791]
[1769865249032,0.30586388,2634.5,2633.6,12.70347772]
[1769865249336,0.796,2635.1,2633.7,12.70347772]
[1769865249337,13.55582164,2635.1,2633.7,12.70347772]
[1769865252206,0.001,2635.3,2633.7,13.65270506]
[1769865252406,0.001,2635.3,2633.9,12.93704802]
[1769865252872,0.001,2635.3,2634.0,0.9491268]
[1769865253144,0.001,2635.3,2634.1,12.93704802]
[1769865253762,0.001,2636.0,2635.0,12.70347772]
[1769865254063,0.001,2636.0,2635.2,12.70347772]
[1769865255052,0.001,2636.0,2635.2,13.65213905]
[1769865255261,0.30876299,2636.3,2635.3,12.93704802]
[1769865255579,13.55582164,2637.0,2635.9,12.70347772]
[1769865255760,13.55582164,2637.3,2635.9,12.70347772]
[1769865256073,13.55582164,2637.5,2636.0,12.93704802]
[1769865256238,13.55582164,2637.3,2636.0,12.70347772]
[1769865256444,13.55682164,2637.1,2636.1,1.34994777]
[1769865256652,13.55682164,2637.1,2635.9,0.796]
[1769865257256,13.55682164,2637.1,2635.9,13.49947772]
[1769865261224,13.55682164,2637.1,2635.1,13.97382549]
[1769865261427,13.55682164,2637.1,2635.4,13.65209942]
[1769865261644,13.55682164,2637.1,2635.6,12.70347772]
[1769865261849,14.9115038,2637.0,2635.7,14.0686834]
[1769865263351,14.9115038,2637.0,2635.7,15.01719765]
[1769865263557,14.9115038,2637.0,2635.7,14.0686834]
[1769865264662,14.9115038,2637.0,2635.8,0.2335703]
[1769865264877,14.9115038,2637.0,2635.9,12.70347772]
[1769865265067,14.9115038,2637.0,2636.0,1.2937048]
[1769865265266,0.001,2637.1,2636.1,12.70347772]
[1769865266364,0.001,2637.1,2636.0,1.2937048]
[1769865266365,13.55682164,2637.1,2636.0,1.2937048]
[1769865267962,13.55682164,2637.1,2636.0,13.99718252]
[1769865268147,0.001,2637.1,2636.0,13.99718252]
[1769865268358,0.001,2636.9,2636.0,13.99718252]
[1769865268556,0.001,2636.9,2636.2,12.70347772]
[1769865268753,0.001,2636.9,2636.1,1.39971825]
[1769865268957,0.001,2636.9,2635.9,12.70347772]
[1769865269570,0.001,2636.9,2635.9,13.65191911]
[1769865269886,0.001,2636.9,2635.9,13.6519198]
[1769865270874,0.001,2636.9,2636.1,12.70347772]
[1769865271678,0.001,2636.9,2635.8,12.93704802]
[1769865271879,0.001,2636.9,2635.9,1.38855346]
[1769865272078,0.001,2636.9,2635.9,12.70347772]
[1769865272483,13.55682164,2636.9,2635.7,12.93704802]
[1769865272640,13.55682164,2636.9,2635.6,0.795]
[1769865272844,13.55582164,2636.7,2635.6,0.795]
[1769865274273,13.55582164,2636.7,2635.1,13.46574159]
[1769865274575,14.35082164,2636.7,2635.2,0.2335703]
[1769865274780,13.55582164,2636.5,2635.3,12.70347772]
[1769865278676,13.55582164,2636.5,2635.2,1.36993119]
[1769865278866,13.55582164,2636.5,2635.2,14.81967321]
[1769865279795,13.55582164,2636.5,2635.5,0.0011]
[1769865280173,0.001,2636.3,2635.5,0.0011]
[1769865280375,0.001,2636.3,2635.5,1.3461842]
[1769865280789,13.49358802,2636.3,2635.5,1.3461842]
[1769865281003,13.49358802,2636.3,2635.5,0.0011]
[1769865282496,0.001,2636.3,2635.5,13.84940849]
[1769865283301,13.49358802,2636.3,2635.5,0.0011]
[1769865284573,0.001,2636.3,2635.5,13.84940849]
[1769865285802,0.001,2636.3,2635.5,0.0011]
[1769865285803,13.49358802,2636.3,2635.5,0.0011]
[1769865286003,14.84294682,2636.3,2635.5,0.0011]
[1769865286306,13.49358802,2636.3,2635.5,0.0011]
[1769865288076,14.44188975,2636.3,2635.5,0.0011]
[1769865288282,13.49358802,2636.3,2635.5,0.0011]
[1769865289815,14.44188834,2636.3,2634.8,0.795]
[1769865290322,13.49258802,2636.1,2634.4,13.84830849]
[1769865290616,13.49258802,2635.9,2634.5,1.38483085]
[1769865290915,14.44103619,2635.9,2634.5,1.38483085]
[1769865291320,13.49258802,2635.9,2634.5,15.23313934]
[1769865291521,13.49258802,2635.7,2634.5,15.23313934]
[1769865291691,14.28758802,2635.7,2634.5,15.23313934]
[1769865291891,15.71634682,2635.7,2634.6,1.52331393]
[1769865292092,15.71634682,2635.7,2634.4,13.84830849]
[1769865292093,15.71634682,2635.7,2634.2,13.84940849]
[1769865292501,15.71634682,2635.7,2634.2,0.0011]
[1769865292815,13.49258802,2635.3,2634.7,0.0011]
[1769865293004,13.49258802,2635.3,2634.2,0.0011]
[1769865293209,13.49258802,2635.3,2634.5,0.0011]
[1769865293935,13.49258802,2635.3,2634.2,0.0011]
[1769865294495,13.49258802,2635.3,2633.4,13.84940849]
[1769865294837,13.49258802,2634.9,2633.4,16.68434934]
[1769865294991,0.9487666,2635.0,2633.4,13.84940849]
[1769865294992,13.49258802,2634.7,2633.4,13.84940849]
[1769865296121,0.795,2634.6,2633.4,13.84940849]
[1769865296323,1.4287588,2634.5,2633.5,15.23324934]
[1769865297204,14.92134682,2634.5,2633.5,15.23324934]
[1769865297403,13.49258802,2634.5,2633.5,15.23324934]
[1769865299315,0.796,2634.5,2633.5,15.23324934]
[1769865299497,0.796,2634.6,2633.5,15.23324934]
[1769865299818,14.28858802,2634.6,2633.5,15.23324934]
[1769865300121,1.4288588,2634.5,2633.6,1.52343493]
[1769865301019,5.23894836,2635.2,2633.8,13.84830849]
[1769865301020,14.93670908,2635.2,2633.8,13.84830849]
[1769865301199,13.49258802,2635.2,2633.8,13.84830849]
[1769865301721,13.49258802,2635.2,2633.5,13.84830849]
[1769865301722,13.49258802,2635.0,2633.5,13.84830849]
[1769865301919,13.49258802,2634.8,2633.6,1.38494085]
[1769865302118,13.49258802,2634.6,2633.4,0.0011]
[1769865302690,13.49258802,2634.6,2633.5,13.84830849]
[1769865305196,13.49258802,2634.6,2633.6,0.0011]
[1769865305895,13.49258802,2634.6,2633.6,13.84940849]
[1769865306322,13.49258802,2634.8,2633.6,13.84940849]
[1769865306510,15.82528949,2634.8,2633.8,13.84830849]
[1769865306910,13.84474123,2635.6,2633.8,13.84830849]
[1769865307104,12.89619062,2635.4,2633.8,13.84830849]
[1769865308725,13.84483744,2635.4,2633.8,13.84830849]
[1769865309522,13.84481582,2635.4,2633.8,13.84830849]
[1769865309694,12.89619062,2635.2,2634.0,13.7489396]
[1769865312725,0.001,2635.7,2634.4,13.7489396]
[1769865312926,0.001,2635.7,2634.6,13.7489396]
[1769865313105,0.001,2635.7,2634.8,13.7489396]
[1769865315131,0.001,2635.7,2634.7,1.37489396]
[1769865315132,12.89719062,2635.7,2634.7,1.37489396]
[1769865315332,12.89719062,2635.7,2634.5,13.7489396]
[1769865317131,0.001,2635.5,2634.5,13.7489396]
[1769865318437,12.89719062,2635.5,2634.2,13.7489396]
[1769865318840,13.84578587,2635.5,2634.2,13.7489396]
[1769865319011,12.89619062,2635.3,2633.9,1.52332493]
[1769865319339,12.89619062,2635.3,2633.8,0.7971]
[1769865319836,12.89619062,2635.3,2633.9,13.7489396]
[1769865321712,13.84485454,2635.3,2633.8,0.7971]
[1769865321913,13.84485454,2635.3,2633.8,0.0011]
[1769865322111,5.97516251,2635.4,2633.8,0.0011]
[1769865322112,12.89619062,2635.1,2633.8,13.7500396]
[1769865322717,0.796,2635.0,2633.8,13.7500396]
[1769865322930,13.69219062,2635.0,2633.8,13.7500396]
[1769865328825,13.69219062,2635.0,2634.0,0.0011]
[1769865329355,13.69219062,2635.0,2634.0,13.7500396]
[1769865329720,12.89619062,2635.0,2634.0,13.7500396]
[1769865330026,1.36931906,2634.9,2634.0,13.7500396]
[1769865330224,13.69319062,2635.1,2634.0,13.7500396]
[1769865330465,0.001,2635.1,2634.0,13.7500396]
[1769865330824,0.001,2635.1,2634.2,13.7489396]
[1769865331457,0.001,2635.5,2634.3,13.7489396]
[1769865331658,0.001,2635.5,2634.5,13.7489396]
[1769865331659,5.0,2635.0,2634.5,13.7489396]
[1769865332151,0.001,2635.5,2634.8,13.7489396]
[1769865332352,12.89719062,2636.3,2635.0,13.7489396]
[1769865339856,12.89719062,2636.3,2634.9,1.37489396]
[1769865340170,13.84549978,2636.3,2634.8,0.796]
[1769865340356,12.89719062,2636.3,2634.8,14.77843152]
[1769865341349,12.89719062,2636.3,2635.2,0.0011]
[1769865341570,13.38831242,2636.1,2635.2,0.0011]
[1769865341766,0.796,2636.0,2635.2,0.0011]
[1769865341967,13.38731242,2635.9,2635.2,0.0011]
[1769865345071,0.797,2636.1,2635.2,0.0011]
[1769865345072,13.38831242,2636.1,2635.2,0.0011]
[1769865345377,14.18431242,2636.1,2635.2,0.0011]
[1769865345565,1.54740315,2636.0,2635.2,0.0011]
[1769865345765,14.93471557,2636.0,2635.2,0.0011]
[1769865348574,0.796,2636.0,2635.2,13.98353152]
[1769865349364,14.18331242,2636.0,2635.2,0.0011]
[1769865351662,0.796,2636.0,2635.2,0.0011]
[1769865351863,14.18331242,2636.0,2635.2,0.0011]
[1769865352063,15.60174366,2636.0,2635.2,0.0011]
[1769865354397,15.60174366,2636.0,2635.4,0.0011]
[1769865354604,0.001,2635.8,2635.4,0.0011]
[1769865356069,13.38831242,2635.8,2635.4,0.0011]
[1769865356905,0.001,2635.8,2635.4,0.0011]
[1769865359971,0.001,2636.1,2635.4,13.98353152]
[1769865360201,13.38831242,2636.1,2635.5,1.39835315]
[1769865360415,13.38831242,2636.1,2635.4,0.0011]
[1769865361974,13.38731242,2635.9,2635.4,0.0011]
[1769865365109,14.33577135,2635.9,2634.2,13.98243152]
[1769865366311,13.38731242,2635.8,2634.1,0.19908072]
[1769865366501,15.32872416,2635.8,2634.1,0.0011]
[1769865367024,13.9773294,2635.6,2634.1,0.0011]
[1769865367202,13.9773294,2635.4,2634.1,0.0011]
[1769865367404,13.9773294,2635.2,2634.1,0.0011]
[1769865368002,13.9773294,2635.2,2634.3,0.0011]
[1769865370522,13.9773294,2635.2,2634.1,13.77334718]
[1769865370818,13.9773294,2635.5,2634.1,13.77334718]
[1769865371016,0.796,2635.5,2634.1,13.77334718]
[1769865371220,0.796,2635.5,2634.3,13.77224718]
[1769865371594,14.7733294,2635.5,2634.2,1.37744472]
[1769865372340,14.7733294,2635.5,2634.2,15.1496919]
[1769865373725,0.796,2635.5,2634.2,15.1496919]
[1769865374023,0.796,2635.5,2634.4,13.77224718]
[1769865374321,14.7733294,2635.5,2634.3,1.60998692]
[1769865374719,14.7733294,2635.5,2634.3,15.3822341]
[1769865375505,13.9773294,2635.5,2634.3,15.3822341]
[1769865377222,13.9773294,2635.5,2634.3,1.60998692]
[1769865377545,13.9773294,2635.5,2634.4,13.77224718]
[1769865380123,13.9773294,2635.7,2634.4,13.77224718]
[1769865380329,0.001,2635.6,2634.4,13.77224718]
[1769865382224,0.001,2635.6,2634.5,13.77224718]
[1769865382564,0.001,2635.6,2634.7,13.77224718]
[1769865387435,0.001,2635.8,2635.2,13.77224718]
[1769865388006,5.0,2636.0,2635.4,13.77224718]
[1769865389328,5.0,2636.0,2635.1,14.00581748]
[1769865389518,5.0,2636.0,2634.5,0.796]
[1769865389519,13.9773294,2635.9,2634.9,13.77224718]
[1769865392040,0.001,2635.8,2634.9,13.77224718]
[1769865393350,13.9783294,2635.8,2634.9,13.77224718]
[1769865393524,13.9783294,2635.8,2635.0,1.37722472]
[1769865394422,13.9783294,2635.8,2634.7,0.2335703]
[1769865394622,13.9783294,2635.8,2634.7,14.00581748]
[1769865395751,0.001,2635.8,2634.7,14.95467872]
[1769865396276,0.001,2635.8,2635.0,13.77224718]
[1769865396427,0.001,2635.8,2635.3,13.77224718]
[1769865396626,5.0,2636.0,2635.4,15.67451627]
[1769865396866,5.0,2636.0,2635.4,13.77224718]
[1769865400026,5.0,2636.0,2635.2,14.13849473]
[1769865400551,13.04907249,2635.9,2635.2,0.795]
[1769865402063,13.04907249,2635.9,2635.2,2.20152166]
[1769865404054,13.04907249,2635.9,2635.4,0.0011]
[1769865404254,0.001,2635.8,2635.4,0.0011]
[1769865406857,0.001,2635.8,2635.4,13.27131658]
[1769865411564,0.001,2635.8,2635.4,0.0011]
[1769865412471,0.001,2635.8,2635.4,1.40773166]
[1769865414832,4.451,2636.0,2635.4,14.67794824]
[1769865415151,4.451,2636.0,2635.4,13.27131658]
[1769865417062,4.451,2636.0,2635.6,0.0011]
[1769865417262,0.001,2635.8,2635.6,0.0011]
[1769865417461,0.001,2635.8,2635.6,1.32834166]
[1769865417664,4.451,2636.0,2635.6,1.32834166]
[1769865420948,0.001,2636.3,2635.9,13.27021658]
[1769865421248,12.86226336,2636.8,2635.9,13.27021658]
[1769865423582,13.04907249,2636.7,2635.8,0.795]
[1769865423868,14.3688404,2636.7,2635.8,0.795]
[1769865424069,14.3688404,2636.7,2635.6,0.0011]
[1769865426050,13.04907249,2636.4,2635.6,0.0011]
[1769865426378,13.04907249,2636.2,2635.4,0.0011]
[1769865426783,13.75626357,2636.6,2635.5,13.27021658]
[1769865426987,13.04907249,2636.6,2635.5,13.27021658]
[1769865427157,13.04907249,2636.6,2635.4,5.25154368]
[1769865427360,13.04907249,2636.6,2635.5,14.19096097]
[1769865429260,13.04907249,2636.6,2635.6,0.0011]
[1769865429464,13.04907249,2636.6,2635.6,14.32255157]
[1769865429762,0.001,2636.0,2635.6,14.32255157]
[1769865429963,13.04907249,2636.6,2635.6,14.32255157]
[1769865430387,13.04907249,2636.6,2635.6,15.27110173]
[1769865430682,13.04907249,2636.6,2635.6,14.32255157]
[1769865430983,13.04907249,2636.6,2635.7,14.67463537]
[1769865433185,13.04907249,2636.6,2635.6,1.08017136]
[1769865433374,13.04907249,2636.6,2635.6,0.0011]
[1769865437389,13.77157713,2636.8,2635.7,13.24238021]
[1769865437561,13.77157713,2636.8,2635.8,13.24238021]
[1769865441191,0.33541572,2636.9,2635.8,13.24238021]
[1769865441365,13.77157713,2637.7,2636.5,13.24238021]
[1769865441688,13.77157713,2637.7,2636.3,14.19065864]
[1769865441891,13.77157713,2637.5,2636.4,1.49856586]
[1769865442092,13.77157713,2637.5,2636.2,1.74331607]
[1769865442388,14.56657713,2637.5,2636.2,0.795]
[1769865442622,13.77157713,2637.3,2636.2,0.795]
[1769865442889,13.77157713,2637.3,2636.2,14.03738021]
[1769865443090,13.77157713,2637.3,2636.2,14.9857043]
[1769865443466,13.77157713,2637.3,2636.2,14.03738021]
[1769865443889,13.77157713,2637.3,2636.2,14.98569771]
[1769865444192,13.77157713,2637.3,2636.3,15.12029713]
[1769865444891,13.77157713,2637.6,2636.4,13.24238021]
[1769865446194,13.77157713,2637.6,2636.4,14.19063794]
[1769865446381,13.77157713,2637.6,2636.4,0.94825773]
[1769865446688,13.77157713,2637.6,2636.3,7.12118691]
[1769865446990,13.77157713,2637.4,2636.4,2.210688]
[1769865447187,13.77157713,2637.4,2636.2,1.74331285]
[1769865449166,13.77157713,2637.4,2636.2,0.795]
[1769865450876,0.795,2637.7,2635.7,13.24238021]
[1769865450877,13.77157713,2637.2,2635.7,13.24238021]
[1769865451070,5.24326999,2637.3,2635.7,13.24238021]
[1769865451071,13.77157713,2637.0,2635.7,13.24238021]
[1769865451270,14.56657713,2637.0,2635.7,13.24238021]
[1769865451698,14.56657713,2637.0,2635.6,0.0011]
[1769865452411,14.56657713,2637.0,2635.6,13.24348021]
[1769865452981,14.56657713,2637.0,2636.4,0.0011]
[1769865453192,13.77157713,2636.8,2636.4,0.0011]
[1769865457110,13.77157713,2636.8,2636.1,0.0011]
[1769865462618,12.65460434,2637.0,2636.1,12.97066263]
[1769865462813,12.65460434,2637.0,2636.1,0.0011]
[1769865463113,13.99956477,2637.0,2636.1,0.0011]
[1769865464330,12.65460434,2636.8,2636.1,0.0011]
[1769865465001,12.65460434,2636.8,2636.3,0.0011]
[1769865465309,12.65560434,2636.8,2636.3,0.0011]
[1769865466402,0.001,2636.8,2636.3,12.97066263]
[1769865466609,0.001,2636.8,2636.4,14.26662889]
[1769865470308,13.44960434,2637.4,2636.4,14.26662889]
[1769865471532,12.65460434,2637.4,2636.4,14.26662889]
[1769865478007,12.65460434,2637.4,2636.6,0.0011]
[1769865478307,0.001,2637.2,2636.6,0.0011]
[1769865478520,0.001,2637.2,2636.6,1.42787289]
[1769865480042,0.001,2637.2,2636.6,12.97066263]
[1769865480216,13.44960434,2637.8,2636.7,12.96956263]
[1769865480904,12.65460434,2637.8,2636.7,13.91771332]
[1769865481110,12.65460434,2638.0,2637.0,12.96956263]
[1769865489945,12.65460434,2638.0,2636.8,1.91620833]
[1769865490245,12.65460434,2638.0,2636.6,13.25147272]
[1769865490917,12.65460434,2638.0,2637.2,0.0011]
[1769865491232,12.62728261,2637.7,2637.2,0.0011]
[1769865491746,0.001,2637.8,2637.2,0.0011]
[1769865492324,0.001,2637.8,2637.3,13.25037272]
[1769865492658,0.001,2637.8,2637.4,1.84947427]
[1769865495058,0.001,2637.8,2637.2,0.0011]
[1769865496430,0.001,2637.8,2637.2,13.25147272]
[1769865498439,12.62828261,2637.8,2637.2,0.0011]
[1769865502062,0.001,2637.8,2637.2,13.25147272]
[1769865502262,0.001,2637.8,2637.4,13.25037272]
[1769865502966,1.27994581,2639.3,2637.4,13.25037272]
[1769865502967,0.795,2638.4,2637.4,13.25037272]
[1769865503340,13.42228261,2638.4,2637.4,13.25037272]
[1769865503750,0.001,2637.8,2637.4,13.25037272]
[1769865503964,0.001,2637.8,2637.3,1.32514727]
[1769865504163,0.001,2637.8,2637.2,0.94905128]
[1769865504761,0.001,2637.8,2637.3,13.25037272]
[1769865505467,0.001,2637.8,2637.3,14.19830803]
[1769865505665,0.001,2637.8,2637.3,13.25037272]
[1769865511270,0.77209662,2639.0,2637.5,18.48982633]
[1769865511271,12.44047247,2638.9,2637.5,18.48982633]
[1769865511575,12.62728261,2638.7,2637.6,1.84898263]
[1769865515274,12.62728261,2638.3,2637.2,0.0011]
[1769865517061,12.62728261,2638.3,2637.4,0.0011]
[1769865519275,12.62728261,2638.3,2637.4,13.61421761]
[1769865521583,12.62728261,2638.3,2637.4,0.0011]
[1769865529288,12.62728261,2638.3,2637.3,13.40572664]
[1769865529587,14.04603615,2638.2,2637.3,14.7464093]
[1769865529753,14.04603615,2638.2,2637.4,0.0011]
[1769865530566,14.04603615,2638.2,2637.4,13.42351896]
[1769865530881,12.78330789,2638.2,2637.4,0.0011]
[1769865533162,3.09564887,2640.6,2637.4,0.0011]
[1769865533163,0.59441203,2641.2,2638.1,13.42241896]
[1769865533384,13.08430789,2639.2,2637.7,18.66187257]
[1769865533575,13.08430789,2639.2,2637.8,13.42241896]
[1769865533965,12.78330789,2639.0,2637.5,13.42241896]
[1769865534296,2.47343355,2638.9,2637.5,13.42241896]
[1769865534465,0.43510009,2639.3,2637.4,0.0011]
[1769865534466,12.78330789,2639.0,2637.8,13.42241896]
[1769865534791,0.795,2638.9,2637.8,13.42241896]
[1769865535369,0.33270009,2639.3,2638.1,13.42241896]
[1769865535696,0.795,2639.2,2638.4,13.42241896]
[1769865535870,13.57830789,2639.2,2638.1,13.42241896]
[1769865536999,13.57830789,2639.2,2637.8,14.37015963]
[1769865537294,12.78330789,2639.0,2637.9,15.2385511]
[1769865537501,12.78330789,2639.0,2637.9,16.18626987]
[1769865538677,12.78330789,2639.0,2638.1,13.42241896]
[1769865539872,12.78330789,2639.0,2637.9,1.81613214]
[1769865540674,0.795,2638.9,2637.9,15.2385511]
[1769865540889,0.795,2638.9,2638.0,15.0410489]
[1769865541080,13.57830789,2638.9,2637.7,13.42241896]
[1769865541313,13.57830789,2638.9,2637.5,3.79144662]
[1769865541314,13.57830789,2638.9,2637.5,13.42241896]
[1769865541798,13.57830789,2638.9,2637.4,0.0011]
[1769865542181,13.57830789,2638.9,2637.4,13.42351896]
[1769865542385,12.78330789,2638.3,2637.4,0.0011]
[1769865542581,13.49862169,2638.8,2637.2,0.0011]
[1769865542582,12.78330789,2638.0,2637.2,0.0011]
[1769865542803,12.78330789,2637.8,2637.2,0.0011]
[1769865542981,12.78330789,2637.8,2637.1,0.0011]
[1769865543180,12.78330789,2637.7,2636.6,0.0011]
[1769865543516,14.14113868,2637.7,2636.6,0.0011]
[1769865544217,12.78330789,2637.4,2636.6,0.0011]
[1769865544375,5.23945361,2637.5,2636.6,0.0011]
[1769865544376,12.78330789,2637.2,2636.6,0.0011]
[1769865544571,14.14113868,2637.1,2636.6,0.0011]
[1769865544878,12.78330789,2637.1,2636.6,0.0011]
[1769865545883,12.78330789,2637.1,2636.1,0.0011]
[1769865546787,0.795,2637.0,2636.1,0.0011]
[1769865546993,14.13244781,2637.0,2636.1,0.0011]
[1769865548001,16.06963795,2637.0,2636.1,0.0011]
[1769865552517,0.94784619,2637.6,2636.1,13.0990605]
[1769865552518,13.33744781,2637.6,2636.1,13.0990605]
[1769865552817,0.795,2637.5,2636.1,13.0990605]
[1769865553912,14.13244781,2637.5,2636.1,13.0990605]
[1769865554116,14.13244781,2637.5,2636.3,0.0011]
[1769865554323,0.001,2636.9,2636.3,0.0011]
[1769865554615,0.795,2636.8,2636.3,0.0011]
[1769865555018,14.13244781,2636.8,2636.3,0.0011]
[1769865555186,15.54579259,2636.8,2636.3,0.0011]
[1769865555618,14.13244781,2636.8,2636.3,0.0011]
[1769865556288,14.13244781,2636.8,2636.1,0.0011]
[1769865556789,14.13244781,2636.8,2635.6,0.0011]
[1769865557421,15.08056933,2636.8,2635.6,0.0011]
[1769865557789,13.33744781,2636.6,2635.6,0.0011]
[1769865558033,13.33744781,2636.2,2635.0,0.0011]
[1769865558225,13.33744781,2636.0,2635.0,0.0011]
[1769865558724,14.28585697,2636.0,2635.0,0.0011]
[1769865558915,13.33744781,2636.0,2635.0,0.0011]
[1769865561936,13.33744781,2635.8,2635.0,0.0011]
[1769865563216,0.795,2635.7,2635.0,0.0011]
[1769865563416,0.70943181,2635.6,2635.0,0.0011]
[1769865563936,14.04687962,2635.6,2635.0,0.0011]
[1769865564115,0.70943181,2635.5,2635.0,0.0011]
[1769865564637,15.53106758,2635.5,2634.4,0.2335703]
[1769865564937,14.04687962,2635.5,2634.4,0.2335703]
[1769865565101,14.04687962,2635.5,2634.4,13.3315308]
[1769865565611,0.56754561,2635.4,2634.4,13.3315308]
[1769865565805,0.56754561,2635.4,2635.3,0.0011]
[1769865566006,1.95804495,2635.4,2634.4,13.0979605]
[1769865566525,1.95804495,2635.4,2635.0,0.0011]
[1769865569028,0.795,2635.3,2635.0,0.0011]
[1769865569743,14.13244781,2635.3,2634.3,0.0011]
[1769865570258,15.08111641,2635.3,2634.3,0.0011]
[1769865570412,13.33744781,2635.1,2634.3,0.0011]
[1769865570845,13.33744781,2634.9,2633.9,0.0011]
[1769865571145,13.33744781,2634.7,2633.9,0.0011]
[1769865571516,13.33744781,2634.5,2633.9,0.0011]
[1769865571720,1.68766882,2634.4,2633.9,0.0011]
[1769865571922,0.795,2634.3,2633.9,0.0011]
[1769865572327,14.13244781,2634.3,2633.9,0.0011]
[1769865572521,14.13244781,2634.3,2633.4,0.0011]
[1769865573635,0.31977821,2634.4,2633.6,13.0990605]
[1769865573835,0.30718155,2635.1,2633.9,13.0979605]
[1769865574151,0.796,2635.0,2633.9,13.0979605]
[1769865575419,14.13344781,2635.0,2633.7,1.31001605]
[1769865575617,14.13344781,2635.0,2633.7,14.40797655]
[1769865575818,14.13344781,2635.0,2633.8,14.53886816]
[1769865577719,12.92204417,2634.6,2633.6,0.0011]
[1769865578536,12.92204417,2634.4,2633.8,0.0011]
[1769865578755,13.71804417,2634.3,2633.8,0.0011]
[1769865578961,0.796,2634.2,2633.8,0.0011]
[1769865579130,1.37180442,2634.1,2633.8,0.0011]
[1769865580726,1.37180442,2634.1,2633.6,0.0011]
[1769865581856,14.62117833,2634.1,2633.6,0.0011]
[1769865582058,14.19846638,2634.1,2633.6,0.0011]
[1769865582229,13.24937391,2634.1,2633.6,0.0011]
[1769865582559,14.19846604,2634.1,2633.4,0.0011]
[1769865583464,14.19846604,2634.1,2632.8,0.0011]
[1769865583465,13.24937391,2634.1,2632.8,0.0011]
[1769865583674,1.4994466,2634.0,2633.0,12.68866626]
[1769865584784,13.35177391,2634.4,2633.0,12.68866626]
[1769865584951,0.796,2634.3,2633.0,12.68866626]
[1769865585147,13.24937391,2634.7,2633.0,12.68866626]
[1769865585328,0.8984,2634.6,2633.0,12.68866626]
[1769865585631,15.5625513,2634.6,2633.2,12.68756626]
[1769865585829,14.14777391,2634.6,2633.2,12.68756626]
[1769865586029,13.35177391,2634.6,2633.2,12.68756626]
[1769865586261,0.30718155,2635.1,2633.4,12.68756626]
[1769865586428,0.30718155,2635.1,2633.2,0.94939678]
[1769865586429,0.796,2635.0,2633.6,12.68756626]
[1769865586755,0.796,2634.9,2633.8,12.68756626]
[1769865587863,0.30718155,2635.1,2633.8,12.68756626]
[1769865588040,0.796,2635.0,2633.8,12.68756626]
[1769865588554,0.30718155,2635.1,2633.8,12.68756626]
[1769865588750,0.796,2635.0,2633.8,12.68756626]
[1769865588961,0.30718155,2635.1,2634.0,12.68756626]
[1769865589135,0.796,2635.0,2634.0,12.68756626]
[1769865589868,0.001,2635.8,2634.2,13.636621]
[1769865590047,0.796,2635.7,2634.4,12.68756626]
[1769865590243,0.001,2635.8,2634.6,12.92113656]
[1769865590440,0.796,2635.7,2634.6,12.92113656]
[1769865591064,0.001,2634.8,2634.6,12.92113656]
[1769865591236,0.001,2635.8,2634.7,12.68756626]
[1769865591438,0.796,2635.7,2634.7,12.68756626]
[1769865591640,0.796,2635.7,2634.9,12.68756626]
[1769865592442,0.001,2635.8,2634.9,12.68756626]
[1769865592658,0.796,2635.7,2634.9,12.68756626]
[1769865593146,0.796,2635.7,2634.8,1.29211366]
[1769865593352,0.796,2635.7,2634.6,12.68756626]
[1769865594071,0.796,2635.6,2634.6,12.68756626]
[1769865596671,0.796,2635.6,2634.5,1.29211366]
[1769865596841,0.796,2635.6,2634.1,0.2335703]
[1769865596842,14.04537391,2635.6,2634.3,12.68756626]
[1769865601888,0.796,2635.6,2634.3,12.68756626]
[1769865602068,0.001,2635.8,2635.1,12.68756626]
[1769865602274,0.796,2635.7,2635.2,12.68756626]
[1769865602451,0.3045,2635.6,2635.0,0.2335703]
[1769865602645,0.29230602,2636.6,2635.2,12.68756626]
[1769865602646,0.72685367,2635.5,2635.2,12.68756626]
[1769865602969,0.10608867,2636.6,2635.5,12.68756626]
[1769865603170,0.10608867,2636.6,2635.5,13.95632289]
[1769865603353,14.04537391,2636.5,2635.5,1.26875663]
[1769865603553,14.04537391,2636.5,2634.6,12.68756626]